fUST/lending_fUST_20250910
["ID","MTS","AMOUNT","RATE_DAILY","PERIOD"]
[384657279,1757506526473,-480.0,0.00020295,2]
[384657280,1757506526482,-480.0,0.00020295,2]
[384657281,1757506526491,-480.0,0.00020295,2]
[384657282,1757506526502,-480.0,0.00020295,2]
[384657283,1757506526511,-208.40429107,0.00020295,2]
[384657284,1757506526538,-271.59570893,0.00020295,2]
[384657285,1757506526548,-480.0,0.00020295,2]
[384657286,1757506526557,-480.0,0.00020295,2]
[384657287,1757506526566,-480.0,0.00020295,2]
[384657288,1757506526575,-480.0,0.00020295,2]
[384657289,1757506526584,-480.0,0.00020295,2]
[384657290,1757506526593,-488.11870951,0.00020295,2]
[384657291,1757506526602,-480.0,0.00020295,2]
[384657292,1757506526611,-480.0,0.00020295,2]
[384657293,1757506526622,-480.0,0.00020295,2]
[384657294,1757506526631,-480.0,0.00020295,2]
[384657295,1757506526641,-480.53323057,0.00020295,2]
[384657296,1757506526650,-480.0,0.00020295,2]
[384657297,1757506526662,-480.0,0.00020295,2]
[384657298,1757506526671,-500.0,0.00020295,2]
[384657299,1757506526680,-500.0,0.00020295,2]
[384657300,1757506526689,-500.0,0.00020295,2]
[384657301,1757506526698,-500.0,0.00020295,2]
[384657302,1757506526707,-500.0,0.00020295,2]
[384657303,1757506526716,-161.73131099,0.00020295,2]
[384657304,1757506526725,-500.0,0.00020295,2]
[384657305,1757506526735,-198.94551902,0.00020295,2]
[384657306,1757506526743,-119.08552098,0.00020295,2]
[384657307,1757506526774,-272.378799,0.00020295,2]
[384657308,1757506526804,-500.0,0.00020295,2]
[384657309,1757506526835,-500.0,0.00020295,2]
[384657310,1757506526864,-500.0,0.00020295,2]
[384657311,1757506526892,-500.0,0.00020295,2]
[384657312,1757506526924,-500.0,0.00020295,2]
[384657313,1757506526953,-500.0,0.00020295,2]
[384657314,1757506526983,-500.0,0.00020295,2]
[384657315,1757506527012,-500.0,0.00020295,2]
[384657316,1757506527043,-500.0,0.00020295,2]
[384657317,1757506527140,-500.0,0.00020295,2]
[384657318,1757506527150,-500.0,0.00020295,2]
[384657319,1757506527162,-500.0,0.00020295,2]
[384657320,1757506527171,-500.0,0.00020295,2]
[384657321,1757506527180,-500.0,0.00020295,2]
[384657322,1757506527190,-500.0,0.00020295,2]
[384657323,1757506527198,-500.0,0.00020295,2]
[384657324,1757506527208,-500.0,0.00020295,2]
[384657325,1757506527217,-500.0,0.00020295,2]
[384657326,1757506527226,-500.0,0.00020295,2]
[384657327,1757506527235,-227.631201,0.00020295,2]
[384657328,1757506527269,-272.368799,0.00020295,2]
[384657329,1757506527299,-500.0,0.00020295,2]
[384657330,1757506527331,-500.0,0.00020295,2]
[384657331,1757506527465,-500.0,0.00020295,2]
[384657332,1757506527496,-500.0,0.00020295,2]
[384657333,1757506527528,-500.0,0.00020295,2]
[384657334,1757506527559,-500.0,0.00020295,2]
[384657335,1757506527587,-500.0,0.00020295,2]
[384657336,1757506527616,-500.0,0.00020295,2]
[384657337,1757506527644,-500.0,0.00020295,2]
[384657338,1757506527713,-500.0,0.00020295,2]
[384657339,1757506527742,-500.0,0.00020295,2]
[384657340,1757506527771,-500.0,0.00020295,2]
[384657341,1757506527799,-500.0,0.00020295,2]
[384657342,1757506527827,-500.0,0.00020295,2]
[384657343,1757506527856,-500.0,0.00020295,2]
[384657344,1757506527885,-500.0,0.00020295,2]
[384657345,1757506527914,-500.0,0.00020295,2]
[384657346,1757506527941,-500.0,0.00020295,2]
[384657347,1757506527972,-500.0,0.00020295,2]
[384657348,1757506528172,-310.41394317,0.00020295,2]
[384657349,1757506528200,-500.0,0.00020295,2]
[384657350,1757506528229,-500.0,0.00020295,2]
[384657351,1757506528257,-500.0,0.00020295,2]
[384657352,1757506528285,-500.0,0.00020295,2]
[384657353,1757506528314,-500.0,0.00020295,2]
[384657354,1757506528348,-500.0,0.00020295,2]
[384657355,1757506528377,-500.0,0.00020295,2]
[384657356,1757506528409,-500.0,0.00020295,2]
[384657357,1757506528441,-500.0,0.00020295,2]
[384657358,1757506529025,-229.67182086,0.00020295,2]
[384657359,1757506529039,-270.32817914,0.00020295,2]
[384657360,1757506529048,-229.67182086,0.00020295,2]
[384657361,1757506529063,-270.32817914,0.00020295,2]
[384657362,1757506529074,-184.94422286,0.00020295,2]
[384657363,1757506529089,-315.05577714,0.00020295,2]
[384657364,1757506529099,-184.94422286,0.00020295,2]
[384657365,1757506529118,-257.18328893,0.00020295,2]
[384657366,1757506529128,-242.81671107,0.00020295,2]
[384657367,1757506529143,-257.18328893,0.00020295,2]
[384657368,1757506529153,-242.81671107,0.00020295,2]
[384657369,1757506529168,-173.33497431,0.00020295,2]
[384657370,1757506529177,-326.66502569,0.00020295,2]
[384657371,1757506529194,-153.33497431,0.00020295,2]
[384657372,1757506529203,-346.66502569,0.00020295,2]
[384657373,1757506529217,-133.33497431,0.00020295,2]
[384657374,1757506529226,-366.66502569,0.00020295,2]
[384657375,1757506529240,-186.56497431,0.00020295,2]
[384657376,1757506529249,-313.43502569,0.00020295,2]
[384657377,1757506529263,-228.47497431,0.00020295,2]
[384657378,1757506529273,-271.52502569,0.00020295,2]
[384657379,1757506529288,-208.47497431,0.00020295,2]
[384657380,1757506529298,-291.52502569,0.00020295,2]
[384657381,1757506529318,-188.47497431,0.00020295,2]
[384657382,1757506529327,-311.52502569,0.00020295,2]
[384657383,1757506529344,-0.01,0.00020295,2]
[384657384,1757506529358,-168.46497431,0.00020295,2]
[384657385,1757506529367,-141.94896886,0.00020295,2]
[384657386,1757506529383,-358.05103114,0.00020295,2]
[384657387,1757506529392,-141.94896886,0.00020295,2]
[384657388,1757506529413,-358.05103114,0.00020295,2]
[384657389,1757506529424,-141.94896886,0.00020295,2]
[384657390,1757506529438,-358.05103114,0.00020295,2]
[384657391,1757506529447,-141.94896886,0.00020295,2]
[384657392,1757506529462,-358.21177898,0.00020295,2]
[384657393,1757506529472,-141.78822102,0.00020295,2]
[384657394,1757506529487,-358.21177898,0.00020295,2]
[384657395,1757506529496,-141.78822102,0.00020295,2]
[384657396,1757506529510,-358.21177898,0.00020295,2]
[384657397,1757506529520,-141.78822102,0.00020295,2]
[384657398,1757506529537,-358.21177898,0.00020295,2]
[384657399,1757506529548,-141.78822102,0.00020295,2]
[384657400,1757506529563,-358.21177898,0.00020295,2]
[384657401,1757506529574,-141.78822102,0.00020295,2]
[384657402,1757506529588,-358.21177898,0.00020295,2]
[384657403,1757506529597,-141.78822102,0.00020295,2]
[384657404,1757506529612,-358.21177898,0.00020295,2]
[384657405,1757506529623,-20.97033468,0.00020295,2]
[384657406,1757506619164,-151.0,0.00018205,2]
[384657407,1757506619192,-151.0,0.0001896,2]
[384657408,1757506619219,-151.0,0.00019715,2]
[384657409,1757506619250,-3625.11855759,0.00019891,2]
[384657410,1757506619323,-1843.77288482,0.00020092,2]
[384657411,1757506619355,-1781.34567277,0.00020092,2]
[384657412,1757506619383,-409.0,0.00020205,2]
[384657413,1757506619414,-500.0,0.00020273,2]
[384657414,1757506619442,-500.0,0.00020273,2]
[384657415,1757506619470,-500.0,0.00020273,2]
[384657416,1757506619499,-500.0,0.00020273,2]
[384657417,1757506619527,-165.14,0.00020286,3]
[384657418,1757506619555,-300.0,0.00020292,2]
[384657419,1757506619582,-209.03865446,0.00020293,2]
[384657420,1757506619659,-270.96134554,0.00020293,2]
[384657421,1757506619687,-480.0,0.00020293,2]
[384657422,1757506619714,-484.61608639,0.00020293,2]
[384657423,1757506619742,-480.0,0.00020293,2]
[384657424,1757506619770,-480.0,0.00020293,2]
[384657425,1757506619799,-480.0,0.00020293,2]
[384657426,1757506619828,-480.0,0.00020293,2]
[384657427,1757506619855,-480.0,0.00020293,2]
[384657428,1757506619883,-480.0,0.00020293,2]
[384657429,1757506619910,-482.03090318,0.00020293,2]
[384657430,1757506619938,-324.79332978,0.00020293,2]
[384657431,1757506620034,-155.20667022,0.00020293,2]
[384657432,1757506620063,-480.0,0.00020293,2]
[384657433,1757506620091,-480.0,0.00020293,2]
[384657434,1757506620120,-482.38074525,0.00020293,2]
[384657435,1757506620147,-484.80567327,0.00020293,2]
[384657436,1757506620174,-480.0,0.00020293,2]
[384657437,1757506620201,-482.15021736,0.00020293,2]
[384657438,1757506620228,-483.02189218,0.00020293,2]
[384657439,1757506620256,-483.70745102,0.00020293,2]
[384657440,1757506620283,-484.95816306,0.00020293,2]
[384657441,1757506620309,-482.85908735,0.00020293,2]
[384657442,1757506620437,-219.91,0.00020285,3]
[384657443,1757506620465,-480.0,0.00020293,2]
[384657444,1757506620493,-481.54633036,0.00020293,2]
[384657445,1757506620519,-482.78382603,0.00020293,2]
[384657446,1757506620545,-482.42793387,0.00020293,2]
[384657447,1757506620571,-483.35534612,0.00020293,2]
[384657448,1757506620599,-480.0,0.00020293,2]
[384657449,1757506620625,-480.0,0.00020293,2]
[384657450,1757506620651,-481.40132224,0.00020293,2]
[384657451,1757506620677,-481.42116779,0.00020293,2]
[384657452,1757506620705,-414.31814718,0.00020293,2]
[384657453,1757506620824,-65.68185282,0.00020293,2]
[384657454,1757506620851,-480.0,0.00020293,2]
[384657455,1757506620878,-480.0,0.00020293,2]
[384657456,1757506620904,-481.43717809,0.00020293,2]
[384657457,1757506620931,-480.0,0.00020293,2]
[384657458,1757506620958,-480.0,0.00020293,2]
[384657459,1757506620985,-480.0,0.00020293,2]
[384657460,1757506621013,-480.0,0.00020293,2]
[384657461,1757506621041,-482.21406152,0.00020293,2]
[384657462,1757506621068,-415.95900355,0.00020293,2]
[384657463,1757506621096,-480.0,0.00020293,2]
[384657464,1757506621212,-480.0,0.00020293,2]
[384657465,1757506621239,-480.0,0.00020293,2]
[384657466,1757506621266,-480.0,0.00020293,2]
[384657467,1757506621396,-480.0,0.00020293,2]
[384657468,1757506621424,-482.73065946,0.00020293,2]
[384657469,1757506621453,-480.0,0.00020293,2]
[384657470,1757506621486,-479.02966532,0.00020295,2]
[384657471,1757506621514,-500.0,0.00020295,2]
[384657472,1757506621542,-500.0,0.00020295,2]
[384657473,1757506621568,-500.0,0.00020295,2]
[384657474,1757506621713,-480.0,0.00020295,2]
[384657475,1757506621744,-480.0,0.00020295,2]
[384657476,1757506621772,-480.0,0.00020295,2]
[384657477,1757506621801,-480.0,0.00020295,2]
[384657478,1757506621828,-480.0,0.00020295,2]
[384657479,1757506621856,-480.0,0.00020295,2]
[384657480,1757506621885,-500.0,0.00020295,2]
[384657481,1757506621915,-500.0,0.00020295,2]
[384657482,1757506621947,-500.0,0.00020295,2]
[384657483,1757506621978,-500.0,0.00020295,2]
[384657484,1757506623246,-356.48935044,0.00020293,2]
[384657485,1757506623265,-123.51064956,0.00020293,2]
[384657486,1757506623274,-376.48935044,0.00020293,2]
[384657487,1757506623288,-103.51064956,0.00020293,2]
[384657488,1757506623297,-396.48935044,0.00020295,2]
[384657489,1757506623312,-103.51064956,0.00020295,2]
[384657490,1757506623321,-136.49935044,0.00020295,2]
[384657491,1757506623374,-113.50064956,0.00020295,2]
[384657492,1757506623408,-483.83879395,0.00020295,2]
[384657493,1757506623436,-500.0,0.00020295,2]
[384657494,1757506623467,-500.0,0.00020295,2]
[384657495,1757506623498,-500.0,0.00020295,2]
[384657496,1757506623526,-500.0,0.00020295,2]
[384657497,1757506623556,-500.0,0.00020295,2]
[384657498,1757506623585,-500.0,0.00020295,2]
[384657499,1757506623612,-500.0,0.00020295,2]
[384657500,1757506623642,-500.0,0.00020295,2]
[384657501,1757506623671,-305.33111298,0.00020295,2]
[384657502,1757506623835,-194.66888702,0.00020295,2]
[384657503,1757506623867,-257.74371124,0.00020295,2]
[384657504,1757506623897,-500.0,0.00020295,2]
[384657505,1757506623926,-500.0,0.00020295,2]
[384657506,1757506623955,-500.0,0.00020295,2]
[384657507,1757506623983,-500.0,0.00020295,2]
[384657508,1757506624015,-500.0,0.00020295,2]
[384657509,1757506624044,-480.0,0.00020295,2]
[384657510,1757506624071,-482.24117586,0.00020295,2]
[384657511,1757506624100,-480.0,0.00020295,2]
[384657512,1757506624129,-480.0,0.00020295,2]
[384657513,1757506624192,-480.0,0.00020295,2]
[384657514,1757506624220,-480.0,0.00020295,2]
[384657515,1757506624252,-296.49860141,0.00020295,2]
[384657516,1757506624279,-480.0,0.00020295,2]
[384657517,1757506624305,-480.0,0.00020295,2]
[384657518,1757506624334,-480.0,0.00020295,2]
[384657519,1757506624361,-480.0,0.00020295,2]
[384657520,1757506624392,-480.0,0.00020295,2]
[384657521,1757506624423,-500.0,0.00020295,2]
[384657522,1757506624452,-500.0,0.00020295,2]
[384657523,1757506624484,-187.01279718,0.00020295,2]
[384657524,1757506624563,-312.98720282,0.00020295,2]
[384657525,1757506624592,-500.0,0.00020295,2]
[384657526,1757506624622,-500.0,0.00020295,2]
[384657527,1757506624651,-575.0,0.00020295,2]
[384657528,1757506624681,-299.99999999,0.00020295,2]
[384657529,1757506624709,-480.0,0.00020295,2]
[384657530,1757506624737,-480.0,0.00020295,2]
[384657531,1757506624766,-482.80682231,0.00020295,2]
[384657532,1757506624795,-480.0,0.00020295,2]
[384657533,1757506624822,-483.12777276,0.00020295,2]
[384657534,1757506624850,-332.16640424,0.00020295,2]
[384657535,1757506624903,-147.83359576,0.00020295,2]
[384657536,1757506624932,-480.0,0.00020295,2]
[384657537,1757506624960,-480.0,0.00020295,2]
[384657538,1757506624986,-480.0,0.00020295,2]
[384657539,1757506625015,-480.0,0.00020295,2]
[384657540,1757506625051,-480.0,0.00020295,2]
[384657541,1757506625086,-480.0,0.00020295,2]
[384657542,1757506625117,-487.89726658,0.00020295,2]
[384657543,1757506625150,-480.0,0.00020295,2]
[384657544,1757506625185,-500.0,0.00020295,2]
[384657545,1757506625220,-500.0,0.00020295,2]
[384657546,1757506625276,-500.0,0.00020295,2]
[384657547,1757506625308,-500.0,0.00020295,2]
[384657548,1757506625344,-500.0,0.00020295,2]
[384657549,1757506625378,-215.05102309,0.00020295,2]
[384657550,1757506625411,-500.0,0.00020295,2]
[384657551,1757506625442,-586.53140181,0.00020295,2]
[384657552,1757506625476,-500.0,0.00020295,2]
[384657553,1757506625510,-500.0,0.00020295,2]
[384657554,1757506625544,-456.915781,0.00020295,2]
[384657555,1757506625581,-300.0,0.00020295,2]
[384657556,1757506625612,-403.0135882,0.00020295,2]
[384657557,1757506625770,-76.9864118,0.00020295,2]
[384657558,1757506625801,-480.0,0.00020295,2]
[384657559,1757506625833,-480.0,0.00020295,2]
[384657560,1757506625865,-480.0,0.00020295,2]
[384657561,1757506625896,-480.0,0.00020295,2]
[384657562,1757506625928,-483.44132887,0.00020295,2]
[384657563,1757506625960,-480.0,0.00020295,2]
[384657564,1757506625992,-482.08901058,0.00020295,2]
[384657565,1757506626023,-480.0,0.00020295,2]
[384657566,1757506626054,-480.0,0.00020295,2]
[384657567,1757506626083,-480.0,0.00020295,2]
[384657568,1757506628234,-371.91578099,0.00019305,2]
[384657569,1757506628253,-96.31308101,0.00019305,2]
[384657570,1757506628262,-233.08191698,0.00019891,2]
[384657571,1757506628271,-150.60500201,0.00019891,2]
[384657572,1757506628284,-380.27137114,0.00019891,2]
[384657573,1757506628293,-99.72862886,0.00020293,2]
[384657574,1757506628307,-234.9764975,0.00020293,2]
[384657578,1757506789414,-456.686516,0.00013562,2]
[384657579,1757506789447,-456.686516,0.00013699,2]
[384657580,1757506789478,-204.08087185,0.00018105,2]
[384657581,1757506789510,-220.404944,0.00019083,2]
[384657582,1757506789539,-203.30414021,0.00019692,2]
[384657583,1757506789569,-203.30414021,0.00019807,2]
[384657584,1757506789595,-846.88337432,0.00019807,2]
[384657585,1757506789621,-160.0,0.00019807,2]
[384657586,1757506789648,-160.0,0.00019846,2]
[384657587,1757506789676,-217.67150996,0.00019849,2]
[384657588,1757506789702,-233.08191698,0.00019849,2]
[384657589,1757506789729,-530.87637315,0.00019849,2]
[384657590,1757506789942,-2214.04939464,0.000199,2]
[384657591,1757506789956,-8619.3072597,0.000199,2]
[384657592,1757506789965,-1380.7027403,0.00020186,2]
[384657593,1757506789999,-629.75415855,0.00020186,2]
[384657594,1757506790028,-456.686516,0.00020187,2]
[384657595,1757506790064,-8913.56932545,0.00020196,2]
[384657596,1757506790081,-629.75415855,0.00020196,2]
[384657597,1757506790095,-456.686516,0.00020196,2]
[384657598,1757506790125,-557.18194771,0.00020196,2]
[384657599,1757506790152,-248.82145066,0.00020273,2]
[384657600,1757506790180,-500.0,0.00020273,2]
[384657601,1757506790208,-500.0,0.00020273,2]
[384657602,1757506790235,-500.0,0.00020273,2]
[384657603,1757506790266,-1940.33,0.00020274,3]
[384657604,1757506790295,-537.17320326,0.00020274,3]
[384657605,1757506790360,-432.99679674,0.00020274,3]
[384657606,1757506790369,-485.08,0.00020274,3]
[384657607,1757506790379,-500.0,0.00020283,2]
[384657608,1757506790389,-500.0,0.00020283,2]
[384657609,1757506790398,-500.0,0.00020283,2]
[384657610,1757506790408,-500.0,0.00020283,2]
[384657611,1757506790418,-125.54525253,0.00020283,2]
[384657612,1757506790433,-374.45474747,0.00020283,2]
[384657613,1757506790444,-182.72720024,0.00020283,2]
[384657614,1757506790461,-248.82145066,0.00020283,2]
[384657615,1757506790477,-68.4513491,0.00020283,2]
[384657616,1757506790487,-431.5486509,0.00020283,2]
[384657617,1757506790522,-68.4513491,0.00020283,2]
[384657618,1757506790553,-500.0,0.00020283,2]
[384657619,1757506790582,-500.0,0.00020283,2]
[384657620,1757506790613,-500.0,0.00020283,2]
[384657621,1757506790643,-500.0,0.00020283,2]
[384657622,1757506790674,-500.0,0.00020283,2]
[384657623,1757506790703,-500.0,0.00020283,2]
[384657624,1757506790732,-500.0,0.00020283,2]
[384657625,1757506790762,-500.0,0.00020283,2]
[384657626,1757506790792,-500.0,0.00020283,2]
[384657627,1757506790820,-363.1073018,0.00020283,2]
[384657628,1757506790992,-77.2226982,0.00020283,2]
[384657629,1757506791024,-59.67,0.00020283,2]
[384657630,1757506791055,-500.0,0.00020283,2]
[384657631,1757506791085,-500.0,0.00020283,2]
[384657632,1757506791117,-500.0,0.00020283,2]
[384657633,1757506791147,-500.0,0.00020283,2]
[384657634,1757506791174,-500.0,0.00020283,2]
[384657635,1757506791202,-500.0,0.00020283,2]
[384657636,1757506791230,-500.0,0.00020283,2]
[384657637,1757506791259,-500.0,0.00020283,2]
[384657638,1757506791288,-500.0,0.00020283,2]
[384657639,1757506791317,-380.67,0.00020283,2]
[384657640,1757506791430,-119.33,0.00020283,2]
[384657641,1757506791568,-500.0,0.00020283,2]
[384657642,1757506791598,-500.0,0.00020283,2]
[384657643,1757506791627,-500.0,0.00020283,2]
[384657644,1757506791656,-500.0,0.00020283,2]
[384657645,1757506791684,-500.0,0.00020283,2]
[384657646,1757506791712,-500.0,0.00020283,2]
[384657647,1757506791739,-500.0,0.00020283,2]
[384657648,1757506791769,-500.0,0.00020283,2]
[384657649,1757506791798,-500.0,0.00020283,2]
[384657650,1757506791825,-230.69352768,0.00020283,2]
[384657651,1757506791901,-299.96294464,0.00020283,2]
[384657652,1757506791931,-500.0,0.00020283,2]
[384657653,1757506791959,-500.0,0.00020283,2]
[384657654,1757506791987,-500.0,0.00020283,2]
[384657655,1757506792015,-500.0,0.00020283,2]
[384657656,1757506792052,-500.0,0.00020283,2]
[384657657,1757506792087,-500.0,0.00020283,2]
[384657658,1757506792117,-500.0,0.00020283,2]
[384657659,1757506792147,-500.0,0.00020283,2]
[384657660,1757506792177,-500.0,0.00020283,2]
[384657661,1757506792268,-500.0,0.00020283,2]
[384657662,1757506792295,-500.0,0.00020283,2]
[384657663,1757506792325,-500.0,0.00020283,2]
[384657664,1757506792354,-500.0,0.00020283,2]
[384657665,1757506792382,-500.0,0.00020283,2]
[384657666,1757506792410,-500.0,0.00020283,2]
[384657667,1757506792437,-500.0,0.00020283,2]
[384657668,1757506792469,-500.0,0.00020283,2]
[384657669,1757506792498,-500.0,0.00020283,2]
[384657670,1757506792527,-500.0,0.00020283,2]
[384657671,1757506792653,-500.0,0.00020283,2]
[384657672,1757506792680,-500.0,0.00020283,2]
[384657673,1757506792709,-500.0,0.00020283,2]
[384657674,1757506792737,-500.0,0.00020283,2]
[384657675,1757506792764,-500.0,0.00020283,2]
[384657676,1757506792792,-500.0,0.00020283,2]
[384657677,1757506792824,-500.0,0.00020283,2]
[384657678,1757506792852,-500.0,0.00020283,2]
[384657679,1757506792881,-500.0,0.00020283,2]
[384657680,1757506792910,-500.0,0.00020283,2]
[384657681,1757506793134,-500.0,0.00020283,2]
[384657682,1757506793165,-500.0,0.00020283,2]
[384657683,1757506793194,-500.0,0.00020283,2]
[384657684,1757506793223,-500.0,0.00020283,2]
[384657685,1757506793251,-500.0,0.00020283,2]
[384657686,1757506793280,-500.0,0.00020283,2]
[384657687,1757506793309,-500.0,0.00020283,2]
[384657688,1757506793343,-500.0,0.00020283,2]
[384657689,1757506793373,-500.0,0.00020283,2]
[384657690,1757506793404,-500.0,0.00020283,2]
[384657691,1757506793544,-500.0,0.00020283,2]
[384657692,1757506793576,-500.0,0.00020283,2]
[384657693,1757506793605,-500.0,0.00020283,2]
[384657694,1757506793636,-500.0,0.00020283,2]
[384657695,1757506793769,-500.0,0.00020283,2]
[384657696,1757506793798,-590.91240762,0.00020283,2]
[384657697,1757506793828,-500.0,0.00020283,2]
[384657698,1757506793858,-500.0,0.00020283,2]
[384657699,1757506793889,-500.0,0.00020283,2]
[384657700,1757506793919,-318.18518476,0.00020283,2]
[384657701,1757506794045,-181.81481524,0.00020283,2]
[384657702,1757506794075,-500.0,0.00020283,2]
[384657703,1757506794105,-500.0,0.00020283,2]
[384657704,1757506794133,-500.0,0.00020283,2]
[384657705,1757506794162,-500.0,0.00020283,2]
[384657706,1757506794190,-500.0,0.00020283,2]
[384657707,1757506794219,-500.0,0.00020283,2]
[384657708,1757506794248,-500.0,0.00020283,2]
[384657709,1757506794284,-500.0,0.00020283,2]
[384657710,1757506794315,-500.0,0.00020283,2]
[384657711,1757506794344,-136.38036952,0.00020283,2]
[384657712,1757506794483,-363.61963048,0.00020283,2]
[384657713,1757506794513,-500.0,0.00020283,2]
[384657714,1757506794544,-500.0,0.00020283,2]
[384657715,1757506794573,-500.0,0.00020283,2]
[384657716,1757506794603,-500.0,0.00020283,2]
[384657717,1757506794633,-171.05930098,0.00020283,2]
[384657718,1757506794664,-500.0,0.00020283,2]
[384657719,1757506794694,-500.0,0.00020283,2]
[384657720,1757506794723,-500.0,0.00020283,2]
[384657721,1757506794753,-500.0,0.00020283,2]
[384657722,1757506794783,-430.65213708,0.00020283,2]
[384657723,1757506796036,-69.34786292,0.00020283,2]
[384657724,1757506796045,-360.73059598,0.00020283,2]
[384657725,1757506796059,-139.26940402,0.00020283,2]
[384657726,1757506796069,-224.35022646,0.00020283,2]
[384657727,1757506796083,-275.64977354,0.00020283,2]
[384657728,1757506796092,-224.35022646,0.00020283,2]
[384657729,1757506796106,-310.83711797,0.00020283,2]
[384657730,1757506796115,-189.16288203,0.00020283,2]
[384657731,1757506796130,-69.74816605,0.00020283,2]
[384657732,1757506796139,-430.25183395,0.00020283,2]
[384657733,1757506796154,-69.74816605,0.00020283,2]
[384657734,1757506796163,-430.25183395,0.00020283,2]
[384657735,1757506796181,-69.74816605,0.00020283,2]
[384657736,1757506796190,-101.31113493,0.00020283,2]
[384657737,1757506796203,-398.68886507,0.00020283,2]
[384657738,1757506796213,-101.31113493,0.00020283,2]
[384657739,1757506796227,-398.68886507,0.00020283,2]
[384657740,1757506796236,-101.31113493,0.00020283,2]
[384657741,1757506796250,-398.68886507,0.00020283,2]
[384657742,1757506796259,-101.31113493,0.00020283,2]
[384657743,1757506796273,-398.68886507,0.00020283,2]
[384657744,1757506796282,-101.31113493,0.00020283,2]
[384657745,1757506796296,-398.68886507,0.00020283,2]
[384657746,1757506796305,-101.31113493,0.00020283,2]
[384657784,1757507249930,157.69095,0.00027397,120]
[384657795,1757507314994,720.0,0.00018813,20]
[384657799,1757507398102,379.9161821,0.00013365,2]
[384657800,1757507414014,379.9161821,0.00013365,2]
[384657801,1757507423027,379.9161821,0.00013365,2]
[384657802,1757507430560,-379.9161821,0.000135,2]
[384657803,1757507430590,-300.0,0.00014499,2]
[384657804,1757507430620,-300.0,0.00014499,2]
[384657805,1757507430649,-300.0,0.00014499,2]
[384657806,1757507430685,-296.0,0.00014499,2]
[384657807,1757507430714,-1200.0,0.00014499,2]
[384657808,1757507430931,-3308.4290895,0.000145,2]
[384657809,1757507430954,-10000.01,0.000145,2]
[384657810,1757507430987,-10000.01,0.000145,2]
[384657811,1757507431046,-10000.01,0.000145,2]
[384657812,1757507431252,-10000.01,0.000145,2]
[384657813,1757507431400,-10000.01,0.000145,2]
[384657818,1757507431685,-10000.01,0.000145,2]
[384657824,1757507431818,-1627.5532543,0.000145,2]
[384657825,1757507431843,-6744.9034914,0.000145,2]
[384657826,1757507431950,-300.0,0.00014789,2]
[384657827,1757507431982,-300.0,0.00014789,2]
[384657828,1757507432013,-300.0,0.00014789,2]
[384657829,1757507432043,-300.0,0.00014789,2]
[384657830,1757507432074,-300.0,0.00014789,2]
[384657831,1757507432107,-300.0,0.00014789,2]
[384657832,1757507432139,-300.0,0.00014789,2]
[384657833,1757507432187,-300.0,0.00014789,2]
[384657837,1757507432220,-300.0,0.00014789,2]
[384657840,1757507432254,-300.0,0.00014789,2]
[384657841,1757507432287,-300.0,0.00014789,2]
[384657842,1757507432318,-300.0,0.00014789,2]
[384657848,1757507432349,-300.0,0.00014789,2]
[384657851,1757507432379,-300.0,0.00014789,2]
[384657852,1757507432417,-300.0,0.00014789,2]